Cogmind - Beta 12 @@@ ROGUE MODE // 2023.03.04 @ 19:20:34 Player: Zntyl Result: Destroyed by Y-54 Guardian with Gatling Laser Performance ------------- Evolutions (3) 1500 Regions Visited (7) 1400 Robots Destroyed (136) 680 Value Destroyed (4453) 4453 Prototype IDs (13) 260 Alien Tech Used (0) 0 Bonus (556) 556 TOTAL SCORE: 8849 Bonus ------- High Alert Combat Kills 503 Follower Combat Kills 72 Friendly Fire -19 Cogmind --------- Core Integrity 0/700 Matter 32/300 Energy 100/100 System Corruption 6% Temperature Cool (12) Movement Core (100) Ox1 Location -7/Storage Parts ------- > --- POWER (1) -------- (None) > --- PROPULSION (2) --- (None) > --- UTILITY (7) ------ (None) > --- WEAPON (3) ------- Gauss Rifle > --- INVENTORY (5) ---- Cooled Deuterium Engine Improved Light Cannon Datajack Heavy Hammer Peak State ------------ > --- POWER ------------ Nuclear Core > --- PROPULSION ------- Armored Huge Wheel > --- UTILITY ---------- Advanced Heat Sink Huge Storage Unit Kinecellerator Heavy Armor Plating Heavy Armor Plating > --- WEAPON ----------- Heavy Assault Cannon Gauss Cannon > --- INVENTORY -------- Armored Huge Wheel Improved Heat Sink Improved Cooling System Medium Armor Plating Medium Armor Plating Heavy Particle Cannon Improved Light Cannon Gauss Cannon Shock Bomb Launcher Shock Bomb Launcher Rocket Launcher Rocket Launcher Datajack Heavy Hammer [Rating: 47] Favorites ----------- Power Light Nuclear Core Engine Light Angular Momentum Engine Power Core Light Nuclear Core Propulsion Wheel Leg Aluminum Leg Wheel Wheel Hover Unit Aerolev Unit Utility Medium Armor Plating Device Advanced Heat Sink Storage Huge Storage Unit Protection Medium Armor Plating Weapon Improved Light Cannon Energy Gun Medium Laser Energy Cannon Heavy Particle Cannon Ballistic Gun Precision Assault Rifle Ballistic Cannon Improved Light Cannon Launcher Rocket Launcher Impact Weapon Heavy Hammer Build | -11 -10 -10 -9 -9 -8 -7 -7 ------- Run | Jun Mat Min Mat Min Mat Fac Sto Slots Evolved 6 | . . . 2 . 2 2 . Power . | . . . . . . . . Propulsion . | . . . . . . . . Utility 5 | . . . 2 . 1 2 . Weapon 1 | . . . . . 1 . . Parts Attached 114 | 6 10 2 12 2 47 33 2 Power 9 | 1 . . 2 1 1 4 . Engine 6 | 1 . . 2 1 . 2 . Core 3 | . . . . . 1 2 . Reactor . | . . . . . . . . Propulsion 13 | 2 . . 3 . 7 1 . Treads . | . . . . . . . . Leg 1 | . . . 1 . . . . Wheel 11 | 2 . . 2 . 6 1 . Hover 1 | . . . . . 1 . . Flight . | . . . . . . . . Utility 36 | 1 4 . 4 1 11 15 . Device 8 | . . . . . 1 7 . Storage 4 | 1 2 . . . . 1 . Processor . | . . . . . . . . Hackware . | . . . . . . . . Protection 24 | . 2 . 4 1 10 7 . Artifact . | . . . . . . . . Weapon 56 | 2 6 2 3 . 28 13 2 Energy Gun 6 | 2 1 . . . 3 . . Energy Cannon 2 | . . . . . 1 1 . Ballistic Gun 4 | . . . . . 1 2 1 Ballistic Cannon 27 | . 3 1 2 . 15 6 . Launcher 12 | . 2 1 . . 4 4 1 Special Weapon . | . . . . . . . . Impact Weapon 5 | . . . 1 . 4 . . Slashing Weapon . | . . . . . . . . Piercing Weapon . | . . . . . . . . Special Melee Weapon . | . . . . . . . . Unidentified Prototypes 9 | . . . . . 6 3 . Parts Lost 31 | . 1 . 3 . 5 15 7 Power 3 | . . . 1 . 1 . 1 Propulsion 6 | . . . 2 . 2 1 1 Utility 15 | . 1 . . . 2 11 1 Weapon 7 | . . . . . . 3 4 Highest Loss Streak 9 | . 1 . 2 . 2 9 7 To Critical Strikes . | . . . . . . . . Average Slot Usage (%) 85 | . 90 100 92 99 86 63 36 Engine 6 | . 14 14 10 11 2 2 6 Core 3 | . . . . . 6 3 . Wheel 15 | . 28 28 17 22 12 6 3 Device 5 | . . . . . 7 11 3 Storage 9 | . 14 14 11 11 9 6 5 Protection 21 | . 5 14 30 32 23 12 . Ballistic Cannon 20 | . 24 27 21 22 23 13 10 Naked Turns 12 | . . . . . . 10 2 Heaviest Build 142 | 12 94 94 116 118 129 142 111 Greatest Support 28 | 20 20 20 26 26 28 28 28 Greatest Overweight (x) 37 | . 4 4 37 4 12 5 35 Average Overweight (x) 3 | . 1 4 5 4 4 3 3 Largest Inventory Capacity 25 | 8 25 25 25 25 25 25 25 Average Capacity 23 | 7 14 25 25 25 25 24 21 Most Carried 25 | 5 9 9 23 22 25 22 10 Average Carried 15 | . 5 8 15 20 18 11 8 Final Capacity 25 | 8 25 25 25 25 25 25 5 Final Carried 22 | . 8 8 21 22 22 10 4 Class Distribution -------------------- 56% | Mutant 37% | Tank 5% | Scavenger-Tank Dominant Class ---------------- Mutant | -10/Materials Mutant | -10/Mines Mutant | -9/Materials Mutant | -9/Mines Tank | -8/Materials Tank | -7/Factory Gunner | -7/Storage Resources | -11 -10 -10 -9 -9 -8 -7 -7 ----------- Run | Jun Mat Min Mat Min Mat Fac Sto Matter Collected 3991 | 163 225 86 438 168 1570 1310 31 Remotely . | . . . . . . . . Salvage Created 3427 | . 311 78 283 129 1340 1222 64 Parts 210 | . 31 4 29 11 58 70 7 Haulers Intercepted 3 | . . . . . 2 1 . Recyclers Shooed 3 | . . . 1 . 1 1 . Parts Field Recycled . | . . . . . . . . Retrieved Matter . | . . . . . . . . Parts Self-Destructed . | . . . . . . . . Prevented . | . . . . . . . . Kills | -11 -10 -10 -9 -9 -8 -7 -7 ------- Run | Jun Mat Min Mat Min Mat Fac Sto Combat Hostiles Destroyed 101 | . 14 5 8 5 33 32 4 Guns 1 | . 1 . . . . . . Cannons 74 | . 8 1 8 5 26 26 . AOE 23 | . 5 4 . . 5 5 4 Classes Destroyed 16 | . 5 . 3 1 3 4 . Worker 7 | . 1 . 2 . 2 2 . Builder 7 | . . . 1 1 3 2 . Tunneler 2 | . . . 1 . 1 . . Hauler 3 | . . . . . 2 1 . Recycler 5 | . . . . . 3 2 . Operator 4 | . 1 . 2 . 1 . . Watcher 7 | . 3 . . . 3 1 . Swarmer 23 | . 6 3 2 2 3 3 4 Grunt 50 | . 8 2 3 2 21 14 . Duelist 2 | . . . . 1 . 1 . Protector 1 | . . . . . . 1 . Sentry 13 | . . . 3 . 8 2 . Specialist 4 | . . . . . . 4 . Hunter 3 | . . . . . . 3 . Programmer 3 | . . . . . . 3 . Heavy 2 | . . . . . 1 1 . Best Kill Streak 8 | . 4 4 2 2 5 8 4 Combat Bots Only 6 | . 3 4 2 2 4 6 4 Max Kills in Single Turn 4 | . 3 4 1 1 3 2 4 Gunslinging . | . . . . . . . . Exploded 4 | . 2 4 . . 2 1 4 Melee . | . . . . . . . . Uniques/NPCs Destroyed . | . . . . . . . . Combat | -11 -10 -10 -9 -9 -8 -7 -7 -------- Run | Jun Mat Min Mat Min Mat Fac Sto Damage Taken 7594 | . 525 137 405 185 1858 3547 937 Core 1187 | . 177 59 45 34 164 495 213 Absorbed by Shields 271 | . . . . . . 240 31 Redirected to Shielding 100 | . . . . . . 100 . Core Remaining (%) 63 | 100 . 5 . 80 70 . . Volleys Fired 278 | . 31 5 25 11 100 103 3 Largest 3 | . 2 2 2 2 3 3 1 Hottest 125 | . 100 78 78 78 117 125 33 Shots Fired 579 | . 60 10 50 22 244 190 3 Gun 21 | . 9 . . . . 10 2 Cannon 531 | . 46 9 50 22 234 170 . Launcher 27 | . 5 1 . . 10 10 1 Special . | . . . . . . . . Kinetic 539 | . 46 9 50 22 234 176 2 Thermal 13 | . 9 . . . . 4 . Explosive 22 | . 5 1 . . 10 5 1 Electromagnetic 5 | . . . . . . 5 . Robot Hit Streak 21 | . 5 5 9 4 5 21 . Robot Miss Streak 8 | . 3 3 2 3 6 8 2 Penetration Max 1 | . . . . . 1 1 . Secondary Targets . | . . . . . . . . Shots Hit Robots 296 | . 29 5 26 13 111 112 . Core Hits 191 | . 20 6 15 8 73 64 5 Critical Kills . | . . . . . . . . Critical Parts Destroyed 2 | . . . . . 2 . . Critical Strikes 25 | . 1 1 2 . 10 11 . Blast 23 | . 1 1 2 . 8 11 . Smash 2 | . . . . . 2 . . Melee Attacks 17 | . . . 4 . 13 . . Impact 17 | . . . 4 . 13 . . Slashing . | . . . . . . . . Piercing . | . . . . . . . . Sneak Attacks . | . . . . . . . . Combat Hostiles . | . . . . . . . . Follow-up Attacks . | . . . . . . . . Damage Inflicted 11379 | . 883 304 633 277 4086 4960 236 Guns 188 | . 63 . . . . 125 . Cannons 8253 | . 527 120 633 277 2915 3781 . Explosions 2682 | . 293 184 . . 969 1000 236 Melee 202 | . . . . . 202 . . Ramming 54 | . . . . . . 54 . Kinetic 8303 | . 527 120 633 277 2915 3831 . Thermal 259 | . 63 . . . . 196 . Explosive 2192 | . 293 184 . . 969 510 236 Electromagnetic 369 | . . . . . . 369 . Impact 202 | . . . . . 202 . . Slashing . | . . . . . . . . Piercing . | . . . . . . . . Highest Corruption 6 | . 1 1 . . 4 6 6 Average Corruption 3 | . 1 1 . . 4 5 6 Corruption Purged . | . . . . . . . . Corruption Blocked . | . . . . . . . . Effects 79 | . 1 2 . . 38 36 2 Message Errors 13 | . . . . . 5 8 . Matter Fused 24 | . . 1 . . 12 11 . Heat Flow Errors 10 | . 1 . . . 6 3 . Energy Discharges 9 | . . 1 . . 3 3 2 Parts Rejected 1 | . . . . . . 1 . Parts Fused 4 | . . . . . 2 2 . Data Loss (minor) 8 | . . . . . 6 2 . Data Loss (major) 2 | . . . . . 1 1 . Misfires 3 | . . . . . 1 2 . Alerts 1 | . . . . . . 1 . Weapon Failures 4 | . . . . . 2 2 . Overload Shots . | . . . . . . . . Overflow Damage 486 | . 24 . 4 . 234 224 . Projectiles 365 | . 14 . 4 . 127 220 . Explosions 27 | . 10 . . . 17 . . Melee 94 | . . . . . 90 4 . Knockbacks 63 | . 2 3 3 3 33 19 . Impact . | . . . . . . . . Kinetic 54 | . 2 3 3 3 27 16 . Secondary 9 | . . . . . 6 3 . Self-Inflicted Damage 199 | . . 31 . . 106 52 10 Shots 9 | . . 1 . . 4 3 1 Rammed 2 | . . . . . . 2 . Targets Rammed 2 | . . . . . . 2 . Kicked . | . . . . . . . . Crushed . | . . . . . . . . Highest Temperature 464 | . 335 156 258 195 464 169 3 Average Temperature 92 | . 95 68 69 55 122 20 3 Received Heat Transfer 1998 | . 144 48 177 84 765 666 114 Effects 8 | . 1 . 1 . 6 . . Shutdowns 1 | . . . . . 1 . . Energy Bleed 6 | . 1 . 1 . 4 . . Short Circuit 1 | . . . . . 1 . . Siege Activations . | . . . . . . . . Robots Corrupted . | . . . . . . . . Combat Hostiles . | . . . . . . . . Parts Fried 2 | . . . . . 1 1 . Impact Corruptions 5 | . . . . . 4 1 . Robots Melted . | . . . . . . . . Combat Hostiles . | . . . . . . . . Parts Melted 1 | . 1 . . . . . . Heat Transferred 546 | . 185 . . . . 361 . Parts Sabotaged . | . . . . . . . . Parts Stolen . | . . . . . . . . Parts Stripped . | . . . . . . . . Power Chain Reactions 3 | . . . . . . 3 . Missiles Intercepted . | . . . . . . . . Alert | -11 -10 -10 -9 -9 -8 -7 -7 ------- Run | Jun Mat Min Mat Min Mat Fac Sto Peak Influence 820 | . 296 293 321 82 634 820 457 Initial 364 | . . 102 113 50 . 272 364 Average 275 | . 191 164 151 30 326 544 394 Maximum Alert Level 3 | . 1 1 1 . 2 3 2 Low Security (%) 41 | 100 60 86 67 100 16 . . Level 1 31 | . 39 13 32 . 59 14 78 Level 2 23 | . . . . . 23 70 21 Level 3 3 | . . . . . . 14 . Level 4 . | . . . . . . . . Level 5 . | . . . . . . . . High Security . | . . . . . . . . Max Security . | . . . . . . . . Squads Dispatched 19 | . 3 . 2 1 4 9 . Investigation 3 | . 1 . . . 1 1 . Extermination 2 | . . . . . . 2 . Reinforcement 12 | . 2 . 2 . 3 5 . Assault 2 | . . . . 1 . 1 . Garrison . | . . . . . . . . Intercept . | . . . . . . . . Searches Triggered . | . . . . . . . . Construction Impeded 2 | . . . . . 1 1 . Haulers Reinforced . | . . . . . . . . Active Scanning Responses . | . . . . . . . . Cargo Convoy Interrupts 1 | . . . . . . 1 . Stealth | -11 -10 -10 -9 -9 -8 -7 -7 --------- Run | Jun Mat Min Mat Min Mat Fac Sto Distress Signals 5 | . 1 . 1 . 3 . . Communications Jammed . | . . . . . . . . Distress Signals . | . . . . . . . . Times Spotted 170 | . 21 7 19 10 56 51 6 Peak Tracking Total 8 | . 4 3 4 3 5 8 5 Tactical Retreats 19 | . . 3 4 1 4 6 1 Traps | -11 -10 -10 -9 -9 -8 -7 -7 ------- Run | Jun Mat Min Mat Min Mat Fac Sto Traps Triggered 4 | . 1 . 1 . 1 1 . Indirectly . | . . . . . . . . Trap Hack Attempts . | . . . . . . . . Triggered . | . . . . . . . . Disarmed . | . . . . . . . . Reprogrammed . | . . . . . . . . Reused . | . . . . . . . . Traps Extracted . | . . . . . . . . Installed . | . . . . . . . . Triggered . | . . . . . . . . Machines | -11 -10 -10 -9 -9 -8 -7 -7 ---------- Run | Jun Mat Min Mat Min Mat Fac Sto Machines Disabled 12 | . 3 . 1 . 2 5 1 Max in Single Turn 1 | . 1 . 1 . 1 1 1 Machines Repaired . | . . . . . . . . Machines Sabotaged . | . . . . . . . . Overloaded Fab Kills . | . . . . . . . . Hacking | -11 -10 -10 -9 -9 -8 -7 -7 --------- Run | Jun Mat Min Mat Min Mat Fac Sto Machines Accessed 25 | . 1 . 4 . 14 5 1 Terminals 20 | . . . 4 . 11 4 1 Fabricators . | . . . . . . . . Repair Stations . | . . . . . . . . Recycling Units 4 | . 1 . . . 2 1 . Scanalyzers . | . . . . . . . . Garrison Access 1 | . . . . . 1 . . Total Hacks 61 | . 3 . 13 . 30 12 3 Successful 15 | . 3 . 5 . 5 1 1 Failed 46 | . . . 8 . 25 11 2 Catastrophic 12 | . . . 2 . 8 2 . Database Lockouts . | . . . . . . . . Manual 30 | . . . 5 . 23 2 . Terminals 46 | . . . 13 . 24 6 3 Fabricators . | . . . . . . . . Repair Stations . | . . . . . . . . Recycling Units 13 | . 3 . . . 4 6 . Scanalyzers . | . . . . . . . . Garrison Access 2 | . . . . . 2 . . Terminal Hacks 10 | . . . 5 . 4 . 1 Prototype ID Bank 2 | . . . 1 . 1 . . Branch Access Points 1 | . . . 1 . . . . Emergency Access Points 1 | . . . . . 1 . . Unreport Threat 1 | . . . 1 . . . . Transport Status 1 | . . . . . 1 . . Hauler Manifests 1 | . . . 1 . . . . Zone Layout 3 | . . . 1 . 1 . 1 Fabricator Hacks . | . . . . . . . . Repair Station Hacks . | . . . . . . . . Recycling Unit Hacks 5 | . 3 . . . 1 1 . Retrieve Matter 3 | . 3 . . . . . . Retrieve Components 2 | . . . . . 1 1 . Scanalyzer . | . . . . . . . . Garrison Access Hacks . | . . . . . . . . Unauthorized Hacks . | . . . . . . . . Terminals . | . . . . . . . . Fabricators . | . . . . . . . . Repair Stations . | . . . . . . . . Recycling Units . | . . . . . . . . Scanalyzers . | . . . . . . . . Garrison Access . | . . . . . . . . Data Cores Recovered 1 | . . . . . 1 . . Used . | . . . . . . . . Hacking Detections 24 | . 1 . 4 . 14 4 1 Full Trace Events 3 | . 1 . . . 1 1 . Feedback Events . | . . . . . . . . Feedback Blocked . | . . . . . . . . Robot Schematics Acquired . | . . . . . . . . Robots Built . | . . . . . . . . Authchips . | . . . . . . . . Time . | . . . . . . . . Total Robot Build Rating . | . . . . . . . . Part Schematics Acquired . | . . . . . . . . Parts Built . | . . . . . . . . Authchips . | . . . . . . . . Time . | . . . . . . . . Total Part Build Rating . | . . . . . . . . Parts Repaired . | . . . . . . . . Time . | . . . . . . . . Parts Recycled . | . . . . . . . . Recycled Matter . | . . . . . . . . Retrieved Matter . | . . . . . . . . Retrieved Components 10 | . . . . . 9 1 . Parts Scanalyzed . | . . . . . . . . Part Schematics Acquired . | . . . . . . . . Parts Damaged . | . . . . . . . . Bothacking | -11 -10 -10 -9 -9 -8 -7 -7 ------------ Run | Jun Mat Min Mat Min Mat Fac Sto Used RIF Installer . | . . . . . . . . Robots Hacked . | . . . . . . . . Non-combat . | . . . . . . . . Combat . | . . . . . . . . Robot Hacks Applied . | . . . . . . . . Relay Couplers Released . | . . . . . . . . Fabnet Peak Effective % . | . . . . . . . . Robots Rewired . | . . . . . . . . Allies Hacked . | . . . . . . . . Hacks Repelled . | . . . . . . . . Allies | -11 -10 -10 -9 -9 -8 -7 -7 -------- Run | Jun Mat Min Mat Min Mat Fac Sto Total Allies 4 | . . . . 4 . . . Largest Group 3 | . . . . 3 3 . . Highest-Rated Group 40 | . . . . 40 40 . . Highest-Rated Ally 31 | . . . . 31 16 . . Total Orders 3 | . . . . . 3 . . STAY 2 | . . . . . 2 . . GUARD 1 | . . . . . 1 . . Ally Attacks 33 | . . . . 9 24 . . Total Damage 268 | . . . . 42 226 . . Kills 2 | . . . . . 2 . . Allies Corrupted . | . . . . . . . . Allies Melted . | . . . . . . . . Intel | -11 -10 -10 -9 -9 -8 -7 -7 ------- Run | Jun Mat Min Mat Min Mat Fac Sto Robot Analysis Total . | . . . . . . . . Derelict Logs Recovered 3 | . . 1 . 2 . . . Drone Launches . | . . . . . . . . Drone Recoveries . | . . . . . . . . Exploration | -11 -10 -10 -9 -9 -8 -7 -7 ------------- Run | Jun Mat Min Mat Min Mat Fac Sto Turns Passed 8350 | 66 697 257 685 1844 2944 1792 65 Spaces Moved 4467 | 73 543 152 304 1018 1499 850 28 Core 49 | 14 . . 3 . . 26 6 Treads . | . . . . . . . . Legs 2 | . . . 2 . . . . Wheels 4416 | 59 543 152 299 1018 1499 824 22 Hover . | . . . . . . . . Flight . | . . . . . . . . Fastest Speed 50 | 50 80 140 140 150 150 50 50 Average Speed 150 | 74 99 140 182 150 163 157 203 Slowest Speed 1900 | 80 140 140 1900 150 260 250 1800 Overloaded Moves . | . . . . . . . . Propulsion Burnouts . | . . . . . . . . Robots Hopped . | . . . . . . . . Cave-ins Triggered . | . . . . . . . . Exploration Rate (%) 46 | 4 85 23 33 100 90 22 12 Regions Visited 7 Branch Regions 3 Pre-discovered Areas 1 | . . . . 1 . . . Known Exits Taken 1 | . . . 1 . . . . Unknown Exits Taken 6 | 1 1 1 . 1 1 1 . Scrap Searched 2 | . . 1 . 1 . . . Spaces Dug 24 | . . . 4 . 20 . . Terrain Destroyed 267 | . 13 14 7 . 138 85 10 Melee 10 | . . . 4 . 6 . . Projectile 77 | . 2 1 3 . 33 38 . AOE 180 | . 11 13 . . 99 47 10 Terrain Rammed . | . . . . . . . . Walls Destroyed . | . . . . . . . . Machines Disabled . | . . . . . . . . Actions | -11 -10 -10 -9 -9 -8 -7 -7 --------- Run | Jun Mat Min Mat Min Mat Fac Sto Total 5531 | 84 643 187 381 1315 1780 1107 34 Wait 465 | . 38 27 9 275 46 70 . Move 4460 | 72 542 151 303 1017 1498 849 28 Hop . | . . . . . . . . Pick Up 107 | 6 14 . 22 6 28 31 . Fast Attach . | . . . . . . . . Attach 113 | 6 10 2 11 2 47 33 2 Detach 37 | . 4 2 2 . 21 8 . Swap 1 | . . . 1 . . . . Drop 51 | . 4 . 4 4 27 11 1 Fire 278 | . 31 5 25 11 100 103 3 Melee 17 | . . . 4 . 13 . . Ram 2 | . . . . . . 2 . Kick . | . . . . . . . . Crush . | . . . . . . . . Escape Stasis . | . . . . . . . . Rewire . | . . . . . . . . Trap . | . . . . . . . . Miscellaneous . | . . . . . . . . Route ------- -11/Junkyard -10/Materials (discovered 4 exits: *Mat x3 / [*Min]) -10/Mines -9/Materials (discovered 2 exits: *Min x2) -9/Mines (discovered 3 exits: *Mat x2 / [*Zio]) -8/Materials (discovered 2 exits: *Fac x2) -7/Factory (discovered 3 exits: [*Fac x2] / *Sto) -7/Storage History --------- Turn | Location | Event 6 | -11/Junkyard | Discovered new exit (range 16) 67 | -11/Junkyard | Entered Materials 220 | -10/Materials | Discovered new exit (range 7) 314 | -10/Materials | Build established: Mutant 333 | -10/Materials | Core integrity fell below 50% 397 | -10/Materials | Discovered new exit (range 16) 647 | -10/Materials | Discovered new exit (range 16) 729 | -10/Materials | Discovered new exit (range 8) 764 | -10/Materials | Entered Mines 872 | -10/Mines | Discovered new exit (range 12) 946 | -10/Mines | Learned Materials terminal intel 984 | -10/Mines | Core integrity fell below 20% 1021 | -10/Mines | Entered Materials 1021 | -9/Materials | Evolved 2 slots: Utility x2 1022 | -9/Materials | Loaded intel: 12 terminal locations 1138 | -9/Materials | Identified exit to Mines 1706 | -9/Materials | Entered Mines 1791 | -9/Mines | Learned Materials non-interactive machine intel 1793 | -9/Mines | Met a Derelict bent on vengeance 1811 | -9/Mines | Found a damaged Exp. Sensor Array with a note attached 1814 | -9/Mines | Found Prototype Device 1833 | -9/Mines | Discovered new exit (range 4) 1956 | -9/Mines | A Derelict revealed a hidden shortcut to a safe place 2001 | -9/Mines | Met a Derelict testing a Signal Generator 2014 | -9/Mines | Found Signal Generator 2376 | -9/Mines | Discovered new exit (range 7) 3137 | -9/Mines | Joined a pair of Derelicts in attacking an 0b10 outpost 3540 | -9/Mines | Assisted by bots powering up and referring to "LRC-V3" 3550 | -9/Mines | Entered Materials 3550 | -8/Materials | Accompanied by 3 allies 3550 | -8/Materials | Evolved 2 slots: Utility x1, Weapon x1 3551 | -8/Materials | Loaded intel: 41 non-interactive machine locations 4247 | -8/Materials | Build established: Scavenger-Tank 4381 | -8/Materials | Discovered new exit (range 7) 4663 | -8/Materials | Build established: Tank 5269 | -8/Materials | Discovered new exit (range 8) 6494 | -8/Materials | Entered Factory 6494 | -7/Factory | Evolved 2 slots: Utility x2 6871 | -7/Factory | Lost 3 parts (2u1w) 7415 | -7/Factory | Discovered new exit (range 12) 7458 | -7/Factory | Lost 9 parts (1n6u2w) 7536 | -7/Factory | Core integrity fell below 50% 7709 | -7/Factory | Build established: Mutant 8003 | -7/Factory | Cargo convoy interrupted 8094 | -7/Factory | First assault squad dispatched 8175 | -7/Factory | Discovered new exit (range 11) 8199 | -7/Factory | Discovered new exit (range 15) 8286 | -7/Factory | Entered Storage 8332 | -7/Storage | Core integrity fell below 20% 8351 | -7/Storage | Destroyed by Y-54 Guardian with Gatling Laser Last Messages --------------- 08304_ System corrupted: Energy discharge (-71). 08314_ K-01 Serf collects debris. 08316_ Imp. Shield Generator destroyed. 08318_ Arm. Huge Wheel destroyed. 08334_ K-01 Serf cleans the Terminal. 08335_ Gauss Cannon destroyed. 08336_ Prc. Assault Rifle destroyed. 08337_ Assault Cannon destroyed. 08337_ S-27 Virus destroyed. 08338_ System corrupted: Energy discharge (-74). 08339_ Dropped Huge Storage Unit. 08341_ K-01 Serf cleans the Terminal. 08344_ Rocket Launcher destroyed. 08344_ Cld. Deuterium Engine destroyed. 08345_ Acquired 14 matter. 08347_ K-01 Serf collects debris. 08347_ Acquired 17 matter. 08348_ Slug penetrates Transfer Shaft. 08348_ Transfer Shaft disabled. 08350_ Slug penetrates Wall. Map ----- +----------------------------------------------------+ | ???????????????????????????????????????????? | | ???????????????????????????????????????????? | | ???????????????????????????????????????????? | | ???????????????????????????????????????????? | | ???????????????????????????????????????????? | | ???????????????????????????????????????????? | | ???????????????????????????????????????????? | | ???????????????????????????????????????????? | | ???????????????????????????????????????????? | | ???????????????????????????????????????????? | | ???????????????????????????????????????????? | | ????????????????# """" #?????# #?????????? | | ????????????????# """" #?????# #?????????? | | ????????????????# #?????# #?????????? | | ????????????????#####+##########+#######???? | | ???????????????????# / ]]] #???? | | ???????????????????# ###### ]]] ##???? | | ???????????????????# #????# ]]] #????? | | ???????????????????# #????# #????? | | ???????????????????# #????# #????? | | ???????????????????# #????# #????? | | ???????????????????# #????# #????? | | ???????????????????# ####?# #????? | | ???????????????????# # ######+######????? | | ???????????????????# * ### #???????? | | ???????????????????# %%*@[ "" #???????? | | ???????????????????# *== T #???????? | | ???????????????????# ]Y #???????? | | ???????????????????## |!## ## k#???????? | | ????????????????????# [* ## ##???????? | | ????????????????????# "" =## #????????? | | ????????????????????# """ ## #????????? | | ????????????????????# """ ## #????????? | | ????????????????????# ## #????????? | | ????????????????????# """ ## #????????? | | ????????????????????# """ ## #????????? | | ????????????????????# """ ## #????????? | | ????????????????????# ## #????????? | | ????????????????????##""T""#### #????????? | | ?????????????????????#"""""#??#####????????? | | ?????????????????????#######???????????????? | | ???????????????????????????????????????????? | | ???????????????????????????????????????????? | | ???????????????????????????????????????????? | | ???????????????????????????????????????????? | | ???????????????????????????????????????????? | | ???????????????????????????????????????????? | | ???????????????????????????????????????????? | | | | | +----------------------------------------------------+ Best States ------------- Heat Dissipation 67 Energy Generation 18 Energy Capacity 310 Matter Stores 300 Matter Capacity 300 Sight Range 16 Terrain Scan Density 10 Armor Coverage 1200 Weapon Shielding 66 Evasion (%) 50 Kinecelleration 30 Item Schematics ----------------- None Robot Schematics ------------------ None Fabricated ------------ Nothing Alien Tech Used ----------------- None Achievements -------------- None Challenges ------------ None Game ------ Seed AnalysisWarpDrive Manual? 0 Play Time 01:04:10 Cumulative 83.0 hours Start 2023.03.04 @ 16:00:35 End 2023.03.04 @ 19:20:34 Sessions 3 Manual Loads 0 Difficulty Rogue Special Mode None Game No. 149 Rogue 89 Adventurer 60 Explorer 0 Win Type - Total 0 Types 0/0/0/0/0/0/0/0/0 Lore% 39 Gallery% 56 Achievement% 54 Wizard Run 0 Options --------- ASCII 0 Keyboard 0 Movement Mouse Keybinds 0 Fullscreen 1 Font 18/SmallcapsGlow Map View 76x50 Tactical HUD 1 Map Filters NONE Filters NONE Steam 1 RUN: e30d1df1-ccd4-415f-b678-e098a38ef315